lending/lending_fUSD_20250323
["ID","MTS","AMOUNT","RATE_DAILY","PERIOD"]
[356578626,1742719840115,-1919.43,0.00011797,2]
[356578627,1742719840124,-180.56,0.00011797,2]
[356578628,1742719840134,-3056.18972503,0.00011821,2]
[356578629,1742719840143,-3056.18972503,0.00011848,2]
[356578630,1742719840152,-2500.0,0.00011873,2]
[356578631,1742719840162,-1000.0,0.00011873,2]
[356578632,1742719840171,-606.08240826,0.00011873,2]
[356578633,1742719840180,-3056.18972503,0.00011874,2]
[356578634,1742719840190,-3056.18972503,0.000119,2]
[356578635,1742719840199,-150.02134318,0.000119,2]
[356578636,1742719840208,-408.53,0.00011911,2]
[356578637,1742719840218,-59714.0,0.00011973,2]
[356578638,1742719840227,-457.25971843,0.00011973,2]
[356578639,1742719840236,-356.60709018,0.00011973,2]
[356578640,1742719840245,-152.928229,0.00011973,2]
[356578641,1742719840255,-151.0,0.00011973,2]
[356578642,1742719840264,-156.543053,0.00011973,2]
[356578643,1742719840273,-185.991062,0.00011973,2]
[356578644,1742719840283,-157.162457,0.00011973,2]
[356578645,1742719840292,-152.502347,0.00011973,2]
[356578646,1742719840302,-151.0,0.00011999,2]
[356578647,1742719840311,-560.0,0.00012,2]
[356578648,1742719840320,-3725309.49966598,0.00012,2]
[356578649,1742719840333,-10927.9053696,0.00012,2]
[356578650,1742719842498,-180.373544,0.00011973,2]
[356578651,1742719842507,-164.56866516,0.00011973,2]
[356578652,1742719843500,-97.68852384,0.00011973,2]
[356578653,1742719843510,-341.99040196,0.00012,2]
[356578654,1742719845471,-502.0,0.00012,2]
[356578655,1742719845481,-1845.10939663,0.00012,2]
[356578656,1742719845526,-851.48121036,0.00012,2]
[356578657,1742719845538,-585.70187622,0.00012,2]
[356578658,1742719845685,-14651.49522533,0.00012,2]
[356578659,1742719845696,-2468.22373007,0.00012,2]
[356578660,1742719845844,-7071.4,0.00012,2]
[356578661,1742719845898,-7321.95849467,0.00012,2]
[356578662,1742719845911,-12736.87844838,0.00012,2]
[356578663,1742719845922,-393.61118615,0.00012,2]
[356578666,1742719878548,198.0,0.00025,60]
[356578667,1742719931471,4457.0,0.00031713,120]
[356578669,1742720859960,1549.3,9.06e-05,2]
[356578681,1742720952902,-283.74,0.00010928,2]
[356578683,1742720964931,-150.0,0.00010866,2]
[356578684,1742720977772,-121.18,0.00010866,2]
[356578685,1742720977797,-28.82,0.00010873,2]
[356578689,1742720995412,-200.0,0.00010873,2]
[356578690,1742721002166,-293.28535622,0.00010873,2]
[356578693,1742721006747,-159.13383978,0.00010873,2]
[356578694,1742721006772,-73.76510892,0.000109,2]
[356578698,1742721031766,-76.23489108,0.000109,2]
[356578699,1742721031776,-716.26,0.00010928,2]
[356578700,1742721031785,-150.0,0.00010993,2]
[356578701,1742721031795,-180.56,0.00011028,2]
[356578702,1742721031804,-221.1045,0.00011083,2]
[356578703,1742721031813,-1327.942,0.00011083,2]
[356578704,1742721031822,-2118.60031049,0.00011083,2]
[356578705,1742721031831,-3656.57623518,0.0001109,2]
[356578707,1742721031923,-20243.42376482,0.0001109,2]
[356578708,1742721031932,-200.0,0.00011207,2]
[356578709,1742721031942,-1549.3,0.00011324,2]
[356578710,1742721031951,-2000.0,0.00011337,2]
[356578711,1742721031961,-4719.37,0.00011342,2]
[356578712,1742721031970,-500.0,0.00011397,2]
[356578713,1742721031979,-250.0,0.00011409,2]
[356578714,1742721031988,-271.18,0.0001147,2]
[356578715,1742721031998,-434.66918734,0.00011546,2]
[356578716,1742721032007,-172.39,0.00011607,2]
[356578717,1742721032016,-232.8989487,0.0001164,2]
[356578718,1742721032025,-157.4,0.00011778,2]
[356578719,1742721032034,-2751.0,0.0001184,2]
[356578720,1742721032044,-538.96,0.0001184,2]
[356578721,1742721032053,-150.0,0.00011856,2]
[356578722,1742721032062,-3258.78,0.00011857,2]
[356578723,1742721032071,-157.4,0.00011896,2]
[356578724,1742721032081,-160.39353576,0.000119,2]
[356578725,1742721032089,-468.4374,0.000119,2]
[356578726,1742721032099,-2500.0,0.000119,2]
[356578727,1742721032108,-267.9351,0.000119,2]
[356578728,1742721032116,-1647.5131,0.000119,2]
[356578729,1742721032128,-1000.0,0.000119,2]
[356578730,1742721032138,-380.23378889,0.00011907,2]
[356578732,1742721032147,-150.02194289,0.00011907,2]
[356578734,1742721032156,-606.08240826,0.00011907,2]
[356578735,1742721032164,-150.0,0.0001196,2]
[356578736,1742721032173,-150.87824934,0.00011973,2]
[356578737,1742721032182,-5000.0,0.0001199,2]
[356578738,1742721032191,-804.275,0.0001199,2]
[356578739,1742721032200,-180.63890909,0.0001199,2]
[356578740,1742721032209,-1225.6961133,0.00011999,2]
[356578741,1742721032218,-9874.4727837,0.00011999,2]
[356578742,1742721032227,-611.0,0.00012,2]
[356578743,1742721032235,-235822.94021535,0.00012,2]
[356578774,1742721039781,-406.74247985,0.00012,2]
[356578782,1742721042802,-133.25752015,0.00012,2]
[356578783,1742721042814,-3869.08043975,0.00012,2]
[356578784,1742721042908,-362.76485203,0.00012,2]
[356578791,1742721045876,-8653.73767457,0.00012,2]
[356578792,1742721045930,-43729.06363221,0.00012,2]
[356578793,1742721045986,-2124.30750216,0.00012,2]
[356578795,1742721051788,-243.7446161,0.0001164,2]
[356578809,1742721096543,-182.808462,0.0001164,2]
[356578816,1742721141767,-182.8084621,0.0001164,2]
[356578823,1742721188784,-182.8084621,0.0001164,2]
[356578824,1742721213292,-166.66666666,0.000118,2]
[356578825,1742721231745,-182.8084621,0.0001164,2]
[356578829,1742721305523,-293.0,0.00011899,2]
[356578838,1742721495529,-434.66918734,0.0001172,2]
[356578848,1742721801807,-187.4697444,0.000119,2]
[356578849,1742721801835,-166.66666666,0.000119,2]
[356578850,1742721801860,-684.42081993,0.000119,2]
[356578851,1742721801885,-178.04075464,0.000119,2]
[356578852,1742721801909,-2500.0,0.000119,2]
[356578853,1742721801933,-1000.0,0.000119,2]
[356578854,1742721801956,-150.0,0.00011902,2]
[356578855,1742721801981,-200.0,0.00011904,2]
[356578856,1742721802004,-150.0,0.00011934,2]
[356578857,1742721802028,-6624.5538754,0.00011999,2]
[356578858,1742721802051,-822.2909835,0.00011999,2]
[356578859,1742721802075,-150.0,0.00011999,2]
[356578860,1742721802098,-571.0,0.00012,2]
[356578861,1742721802124,-75615.55715547,0.00012,2]
[356578862,1742721834810,-2500.0,0.000119,2]
[356578863,1742721834838,-397.88499226,0.000119,2]
[356578864,1742721834862,-516.0,0.00012,2]
[356578865,1742721834889,-86.11500774,0.00012,2]
[356578867,1742721854178,-3075.0,0.00012,2]
[356578870,1742721919952,5187.24310293,9e-05,2]
[356578871,1742721927926,-676.2423973,0.000108,2]
[356578872,1742721936365,14960.96945966,8e-05,2]
[356578873,1742721936622,-150.0,0.000108,2]
[356578879,1742721962123,5239.66925512,8e-05,2]
[356578882,1742721980402,-162.37649193,0.000108,2]
[356578883,1742721980425,-21.92350807,0.00011,2]
[356578884,1742722006334,-213.00813968,0.00011,2]
[356578885,1742722035377,205.0,9.8e-05,2]
[356578894,1742722057021,-166.66,0.00011,2]
[356578896,1742722073609,503.88408718,0.0001,2]
[356578898,1742722077400,59903.23409511,0.0001,2]
[356578899,1742722078238,-151.0,0.0001,2]
[356578900,1742722082863,-293.28535622,9.999e-05,2]
[356578901,1742722087924,540.98706825,9e-05,2]
[356578902,1742722103565,-6.71464378,9.999e-05,2]
[356578903,1742722103588,-147.28593642,0.0001,2]
[356578905,1742722118926,-153.0,0.0001,2]
[356578907,1742722130351,-230.53094839,0.0001,2]
[356578908,1742722132410,-293.28535622,9.95e-05,2]
[356578909,1742722142694,-198.9129749,9.95e-05,2]
[356578923,1742722148260,-77.19109788,9.95e-05,2]
[356578924,1742722148284,-75.55118122,9.999e-05,2]
[356578925,1742722150665,-224.44881878,9.999e-05,2]
[356578926,1742722150689,-35.65333448,0.0001,2]
[356578930,1742722180645,-5651.58370328,0.0001,2]
[356578934,1742722180701,-410.26702923,0.0001,2]
[356578936,1742722181919,-150.0,0.0001,2]
[356578941,1742722230666,-12575.0,0.0001,2]
[356578942,1742722231294,-250.0,0.0001,2]
[356578947,1742722231778,-1199.54019934,0.0001,2]
[356578951,1742722231835,-5492.45951555,0.0001,2]
[356578952,1742722231998,-606.96468965,0.0001,2]
[356578953,1742722232110,-1399.80111379,0.0001,2]
[356578954,1742722232121,-2613.10872722,0.0001,2]
[356578955,1742722232132,-1400.2024902,0.0001,2]
[356578971,1742722237951,-16.89674371,0.0001,2]
[356578972,1742722237974,-1358.61740743,0.0001,2]
[356579204,1742722240260,-150.0,0.0001,2]
[356579208,1742722240284,-1285.05571944,0.0001,2]
[356579233,1742722240506,-6056.59632328,0.0001,2]
[356579350,1742722242920,-464.76347741,0.0001,2]
[356579351,1742722242979,-11788.32746563,0.0001,2]
[356579352,1742722242991,-150.0,0.000105,2]
[356579353,1742722243001,-805.32972534,0.00011,2]
[356579360,1742722243867,-2801.29996,0.00011,2]
[356579361,1742722243879,-77.27107534,0.00011,2]
[356579362,1742722243889,-150.0,0.00011,2]
[356579363,1742722243899,-150.0,0.00011225,2]
[356579364,1742722243908,-152.7422791,0.0001164,2]
[356579365,1742722243918,-434.66918734,0.00011736,2]
[356579366,1742722243927,-631.61744322,0.00011748,2]
[356579368,1742722246000,-25.17255678,0.00011748,2]
[356579369,1742722246011,-2000.0,0.00011868,2]
[356579370,1742722246020,-150.0,0.00011899,2]
[356579371,1742722246031,-1161.89001565,0.000119,2]
[356579372,1742722246043,-253.52,0.000119,2]
[356579373,1742722246058,-373.49586585,0.000119,2]
[356579374,1742722246118,-812.83897059,0.000119,2]
[356579375,1742722246129,-1969.14069613,0.000119,2]
[356579376,1742722246141,-856.2321508,0.000119,2]
[356579377,1742722246175,-39280.53172435,0.000119,2]
[356579378,1742722246186,-620.1702649,0.000119,2]
[356579379,1742722246232,-4484.69999684,0.000119,2]
[356579381,1742722246489,-2305.0196926,0.000119,2]
[356579382,1742722246506,-547.84176427,0.000119,2]
[356579383,1742722251201,-150.0,0.000119,2]
[356579384,1742722266696,-152.7422791,0.0001164,2]
[356579385,1742722266719,-31.70071892,0.00011899,2]
[356579386,1742722267639,87584.0,0.00031681,120]
[356579387,1742722268369,-152.7422791,0.00011899,2]
[356579394,1742722756655,-167.73673983,0.00011583,2]
[356579397,1742722915333,1115.35,0.00025,60]
[356579431,1742723154373,508.03986119,0.00031684,120]
[356579456,1742723265087,-150.0,0.00011739,2]
[356579467,1742723311960,-284.66918734,0.00011739,2]
[356579468,1742723311984,-167.73673983,0.000118,2]
[356579469,1742723312009,-150.0,0.0001185,2]
[356579470,1742723312033,-300.0,0.00011899,2]
[356579471,1742723312062,-150.0,0.00011899,2]
[356579472,1742723312086,-3047.59407283,0.000119,2]
[356580120,1742723432055,-150.0,0.000118,2]
[356580121,1742723432065,-150.0,0.0001185,2]
[356580122,1742723432075,-150.0,0.000119,2]
[356580123,1742723432084,-160.68835236,0.000119,2]
[356580124,1742723432093,-173.095,0.000119,2]
[356580125,1742723432102,-80.32214237,0.000119,2]
[356580126,1742723432114,-454.13020608,0.000119,2]
[356580127,1742723432332,-309.22165155,0.000119,2]
[356580128,1742723432343,-615.97873791,0.000119,2]
[356580129,1742723432353,-371.35932624,0.000119,2]
[356580130,1742723432363,-583.74,0.000119,2]
[356580131,1742723432375,-5037.24113953,0.000119,2]
[356580132,1742723432391,-425.85126356,0.000119,2]
[356580215,1742723438010,-400.165,0.000119,2]
[356580222,1742723440340,-543.09390782,0.000119,2]
[356580223,1742723440352,-1119.2,0.000119,2]
[356580224,1742723440363,-792.95693451,0.000119,2]
[356580286,1742723446099,-2120.8553156,0.000119,2]
[356580287,1742723446110,-184.44299802,0.000119,2]
[356580288,1742723446120,-3401.80922588,0.000119,2]
[356580289,1742723446132,-6849.16197412,0.000119,2]
[356580290,1742723446142,-200.0,0.00011904,2]
[356580291,1742723446151,-259.83798488,0.00011973,2]
[356580292,1742723446161,-5941.2485364,0.00011997,2]
[356580293,1742723446171,-539.0,0.00012,2]
[356580294,1742723446180,-366312.22237101,0.00012,2]
[356580295,1742723446276,-604.0,0.00012,2]
[356580301,1742723556660,-150.0,0.0001164,2]
[356580303,1742723593553,-150.0,0.0001,2]
[356580305,1742723657950,-48.9129749,0.0001,2]
[356580306,1742723657972,-151.0870251,0.00010797,2]
[356580308,1742723683814,-181.09745514,0.00010797,2]
[356580311,1742723776353,-509.41215276,0.00010796,2]
[356580312,1742723783620,-152.6363921,0.00010794,2]
[356580313,1742723794572,-293.28535622,0.00010792,2]
[356580315,1742723803360,-161.44191272,0.00010789,2]
[356580317,1742723837662,-200.0,0.00010786,2]
[356580329,1742723943965,-154.3501345,0.00010784,2]
[356580330,1742723956698,-234.57342221,0.0001078,2]
[356580331,1742723965164,-230.68395514,0.00010777,2]
[356580335,1742724003950,-187.85653831,0.00010777,2]
[356580336,1742724004112,2009.61,8.851e-05,2]
[356580339,1742724009417,-172.1004613,0.00010777,2]
[356580341,1742724022560,-172.1004613,0.00010758,2]
[356580343,1742724054534,-27.8995387,0.00010758,2]
[356580344,1742724054557,-472.1004613,0.00010777,2]
[356580345,1742724057303,-471.417954,0.00010777,2]
[356580347,1742724070544,-187.40607384,0.00010679,2]
[356580348,1742724104033,-170.10653957,0.00010777,2]
[356580351,1742724115197,-334.3589088,0.00010746,2]
[356580352,1742724122630,-250.7691816,0.00010746,2]
[356580353,1742724130190,-173.14,0.00010735,2]
[356580354,1742724130212,-14.9368862,0.00010746,2]
[356580355,1742724181991,-186.03,0.00010724,2]
[356580356,1742724182016,-2.0468862,0.00010746,2]
[356580357,1742724225166,-188.0768862,0.00010724,2]
[356580358,1742724259676,-161.9231138,0.00010724,2]
[356580359,1742724259697,-26.1537724,0.00010735,2]
[356580360,1742724281492,-123.8462276,0.00010735,2]
[356580361,1742724281514,-29.06528357,0.00010746,2]
[356580362,1742724291582,-152.91151117,0.0001,2]
[356580366,1742724318200,-14.9898285,0.0001,2]
[356580367,1742724318223,-118.11285363,0.00010746,2]
[356580368,1742724318247,-19.80882904,0.00010755,2]
[356580370,1742724323865,-152.91151117,0.00010755,2]
[356580729,1742724632315,-187.40607383,0.00010672,2]
[356580730,1742724632326,-2000.0,0.00010748,2]
[356580731,1742724632335,-3843.31965979,0.00010755,2]
[356580732,1742724632345,-1000.0,0.00010772,2]
[356580733,1742724632357,-162.16,0.00010772,2]
[356580734,1742724632367,-22195.73409038,0.00010777,2]
[356580735,1742724632377,-1597.41657779,0.0001078,2]
[356580736,1742724632386,-40.4698655,0.00010784,2]
[356580737,1742724632395,-274.54064466,0.00010784,2]
[356580738,1742724632404,-813.71,0.00010785,2]
[356580739,1742724632413,-631.06,0.00010789,2]
[356580740,1742724632423,-1294.78808728,0.00010789,2]
[356580741,1742724632433,-35.17464378,0.00010792,2]
[356580742,1742724632442,-55.0936079,0.00010794,2]
[356580743,1742724632452,-8879.92387909,0.00010796,2]
[356580744,1742724632467,-539.82396815,0.00010796,2]
[356580745,1742724632481,-1473.00551976,0.00010797,2]
[356580746,1742724632490,-401.23518114,0.00011,2]
[356580747,1742724632501,-500.0,0.00011,2]
[356580748,1742724632510,-153.76,0.00011097,2]
[356580749,1742724632519,-2009.61,0.00011115,2]
[356580750,1742724632529,-2751.0,0.00011507,2]
[356580751,1742724632539,-883.09284,0.0001164,2]
[356580752,1742724632548,-434.66918734,0.00011657,2]
[356580753,1742724632557,-150.0,0.00011668,2]
[356580754,1742724632566,-150.0,0.00011702,2]
[356580755,1742724632576,-1054.16592056,0.00011703,2]
[356580756,1742724632585,-250.0,0.00011719,2]
[356580757,1742724632595,-150.0,0.00011724,2]
[356580758,1742724632604,-457.4673,0.00011726,2]
[356580759,1742724632613,-150.0,0.00011727,2]
[356580760,1742724632622,-150.0,0.00011727,2]
[356580761,1742724632631,-150.0,0.00011727,2]
[356580762,1742724632641,-150.0,0.00011728,2]
[356580763,1742724632650,-150.0,0.00011734,2]
[356580764,1742724632660,-150.0,0.00011736,2]
[356580765,1742724632669,-150.0,0.00011737,2]
[356580766,1742724632679,-150.0,0.00011739,2]
[356580767,1742724632688,-150.0,0.00011739,2]
[356580768,1742724632697,-150.0,0.00011743,2]
[356580769,1742724632706,-150.0,0.00011751,2]
[356580770,1742724632716,-150.0,0.00011752,2]
[356580771,1742724632725,-150.0,0.00011754,2]
[356580772,1742724632734,-150.0,0.00011763,2]
[356580773,1742724632744,-150.0,0.00011764,2]
[356580774,1742724632753,-150.0,0.00011767,2]
[356580775,1742724632762,-150.0,0.00011769,2]
[356580776,1742724632772,-150.0,0.00011771,2]
[356580777,1742724632781,-248.38836303,0.00011771,2]
[356580778,1742724632791,-150.0,0.00011781,2]
[356580779,1742724632800,-1000.0,0.00011782,2]
[356580780,1742724632809,-150.0,0.00011785,2]
[356580781,1742724632818,-150.0,0.00011786,2]
[356580782,1742724632828,-150.0,0.00011788,2]
[356580783,1742724632837,-150.0,0.0001179,2]
[356580784,1742724632847,-150.0,0.00011794,2]
[356580785,1742724632857,-150.0,0.00011794,2]
[356580786,1742724632866,-150.0,0.00011795,2]
[356580787,1742724632875,-150.0,0.00011796,2]
[356580788,1742724632885,-150.0,0.00011797,2]
[356580789,1742724632895,-150.0,0.000118,2]
[356580790,1742724632904,-6652.5166,0.000118,2]
[356580791,1742724632914,-400.7164,0.000118,2]
[356580792,1742724632923,-150.0,0.00011801,2]
[356580793,1742724632933,-150.0,0.00011806,2]
[356580794,1742724632942,-150.0,0.00011809,2]
[356580796,1742724632951,-150.0,0.00011811,2]
[356580798,1742724632960,-205.10454616,0.00011814,2]
[356580800,1742724632970,-150.0,0.00011816,2]
[356580802,1742724632979,-299.99531166,0.00011816,2]
[356580804,1742724632988,-150.0,0.00011824,2]
[356580806,1742724632997,-150.0,0.00011826,2]
[356580822,1742724633146,-150.0,0.00011826,2]
[356580824,1742724633156,-150.0,0.00011827,2]
[356580825,1742724633165,-150.0,0.00011829,2]
[356580827,1742724633175,-150.0,0.00011831,2]
[356580829,1742724633185,-150.0,0.00011832,2]
[356580831,1742724633194,-150.0,0.00011836,2]
[356580833,1742724633204,-150.0,0.00011836,2]
[356580835,1742724633214,-150.0,0.00011839,2]
[356580837,1742724633223,-150.0,0.0001184,2]
[356580839,1742724633232,-150.0,0.00011844,2]
[356580841,1742724633242,-150.0,0.00011847,2]
[356580843,1742724633251,-150.0,0.00011847,2]
[356580845,1742724633260,-162.16,0.00011849,2]
[356580847,1742724633270,-1000.0,0.00011853,2]
[356580849,1742724633279,-1000.0,0.00011853,2]
[356580851,1742724633288,-150.0,0.00011853,2]
[356580853,1742724633298,-1139.27878122,0.00011854,2]
[356580855,1742724633308,-150.0,0.00011854,2]
[356580857,1742724633317,-150.0,0.0001186,2]
[356580859,1742724633326,-150.0,0.00011861,2]
[356580861,1742724633335,-150.0,0.00011861,2]
[356580863,1742724633345,-150.0,0.00011862,2]
[356580865,1742724633354,-150.0,0.00011864,2]
[356580867,1742724633363,-150.0,0.00011865,2]
[356580868,1742724633372,-150.0,0.00011865,2]
[356580870,1742724633381,-150.0,0.0001188,2]
[356580871,1742724633390,-150.0,0.00011882,2]
[356580873,1742724633399,-150.0,0.00011886,2]
[356580875,1742724633408,-150.0,0.00011886,2]
[356580876,1742724633417,-150.0,0.00011889,2]
[356580878,1742724633426,-150.0,0.00011893,2]
[356580880,1742724633436,-150.0,0.00011893,2]
[356580882,1742724633445,-214.2730293,0.000119,2]
[356580884,1742724633453,-1158.1813,0.000119,2]
[356580886,1742724633462,-1000.0,0.000119,2]
[356580887,1742724633475,-165.643,0.000119,2]
[356580889,1742724633484,-1556.426,0.000119,2]
[356580891,1742724633494,-34045.9456,0.000119,2]
[356580893,1742724633504,-2054.9992,0.000119,2]
[356580895,1742724633513,-314.404,0.000119,2]
[356580897,1742724633522,-12788.44209804,0.000119,2]
[356580899,1742724633531,-1378.0519,0.000119,2]
[356580901,1742724633540,-3733.00655787,0.000119,2]
[356580902,1742724633549,-1296.5485,0.000119,2]
[356580903,1742724633558,-431.7771324,0.000119,2]
[356580905,1742724633568,-3002.4425,0.000119,2]
[356580908,1742724633578,-178.04075463,0.000119,2]
[356580910,1742724633597,-500.0,0.000119,2]
[356580912,1742724633607,-150.0,0.00011909,2]
[356580914,1742724633617,-150.0,0.00011912,2]
[356580916,1742724633626,-150.0,0.00011921,2]
[356580918,1742724633636,-150.0,0.00011922,2]
[356580920,1742724633646,-150.0,0.00011924,2]
[356580922,1742724633658,-150.0,0.00011925,2]
[356580924,1742724633668,-150.0,0.00011927,2]
[356580926,1742724633677,-150.0,0.0001193,2]
[356580928,1742724633688,-150.0,0.00011932,2]
[356580930,1742724633697,-150.0,0.00011933,2]
[356580932,1742724633707,-150.0,0.00011936,2]
[356580934,1742724633717,-150.0,0.00011939,2]
[356580936,1742724633727,-150.0,0.0001194,2]
[356580938,1742724633738,-150.0,0.00011944,2]
[356580940,1742724633747,-150.0,0.00011945,2]
[356580941,1742724633757,-150.0,0.00011949,2]
[356580943,1742724633766,-150.0,0.00011949,2]
[356580945,1742724633776,-150.0,0.0001195,2]
[356580947,1742724633786,-150.0,0.00011961,2]
[356580949,1742724633795,-150.0,0.00011964,2]
[356580951,1742724633805,-150.0,0.00011965,2]
[356580953,1742724633815,-150.0,0.00011968,2]
[356580955,1742724633825,-150.0,0.0001197,2]
[356580957,1742724633835,-150.0,0.0001197,2]
[356580959,1742724633844,-150.0,0.00011972,2]
[356580960,1742724633854,-150.0,0.00011981,2]
[356580962,1742724633864,-150.0,0.00011983,2]
[356580964,1742724633874,-150.0,0.00011989,2]
[356580966,1742724633883,-5656.7156038,0.00011997,2]
[356580968,1742724633892,-845.9477132,0.00011997,2]
[356580970,1742724633902,-150.0,0.00011997,2]
[356580972,1742724633912,-150.0,0.00011998,2]
[356580974,1742724633921,-150.0,0.00011999,2]
[356580976,1742724633931,-544.0,0.00012,2]
[356580978,1742724633941,-53775.60095649,0.00012,2]
[356581052,1742724638203,-508.26387962,0.00012,2]
[356581053,1742724638214,-747.0094225,0.00012,2]
[356581054,1742724638308,-11899.3940201,0.00012,2]
[356581055,1742724638318,-9699.07474949,0.00012,2]
[356581056,1742724638330,-16411.82440605,0.00012,2]
[356581057,1742724638341,-1298.45990584,0.00012,2]
[356581217,1742724640449,-787322.60204618,0.00012,2]
[356581220,1742724643267,-1033.00001,0.00012,2]
[356581261,1742724673317,-152.91151117,0.00011496,2]
[356581273,1742724998019,-152.91151117,0.00011283,2]
[356581278,1742725050520,1848.44,9.223e-05,2]
[356581279,1742725054477,-152.91151117,0.00011283,2]
[356581287,1742725133613,-152.91151117,0.00011283,2]
[356581289,1742725144596,-300.0,0.00011282,2]
[356581290,1742725163905,-152.25687035,0.00011283,2]
[356581294,1742725201896,-168.48,0.00011282,2]
[356581299,1742725252022,173.14,0.00010898,2]
[356581301,1742725299912,200.0,0.00010716,2]
[356581304,1742725324227,-200.0,0.00011282,2]
[356581305,1742725357667,1052.76679838,0.00010719,2]
[356581306,1742725357689,1040.24320162,0.00010719,2]
[356581310,1742725383374,-153.76,0.00011282,2]
[356581312,1742725434118,2234.10359676,0.00010712,2]
[356581313,1742725434141,454.32640324,0.00010712,2]
[356581314,1742725453539,363.28,0.00010706,2]
[356581315,1742725500298,-181.19713606,0.00011234,2]
[356581318,1742725524380,-179.87709353,0.00011177,2]
[356581329,1742725620624,153.76,8.56e-05,2]
[356581350,1742725651952,1000.0,0.000107,2]
[356581351,1742725674013,1302.98039514,0.0001,2]
[356581352,1742725674035,1785.11712911,0.0001,2]
[356581353,1742725677775,1489.22966927,0.0001,2]
[356581354,1742725677797,3274.34679838,0.0001,2]
[356581355,1742725677821,3274.34679838,0.0001,2]
[356581356,1742725677843,3274.34679838,0.0001,2]
[356581357,1742725677865,3274.34679838,0.0001,2]
[356581358,1742725677887,3274.34679838,0.0001,2]
[356581359,1742725677909,3274.34679838,0.0001,2]
[356581360,1742725678511,-243.7446161,0.0001,2]
[356581364,1742725686812,-192.64826298,0.0001,2]
[356581365,1742725694354,-150.0,0.0001,2]
[356581367,1742725702733,-151.0,0.0001,2]
[356581369,1742725712052,-182.808462,0.0001,2]
[356581372,1742725740677,-182.8084621,0.0001,2]
[356581388,1742725754397,-154.0005802,9.95e-05,2]
[356581595,1742725789451,-178.1965558,9.95e-05,2]
[356581598,1742725789482,-5416.70381496,0.0001,2]
[356581602,1742725789599,-3715.54034491,0.0001,2]
[356581604,1742725793445,-182.8084621,0.0001,2]
[356581610,1742725815289,-150.0,9.999e-05,2]
[356581621,1742725832312,-150.0,0.0001,2]
[356581623,1742725832322,-8050.0,0.0001,2]
[356581628,1742725832472,-508.47198714,0.0001,2]
[356581629,1742725832527,-15823.685467,0.0001,2]
[356581632,1742725833029,-194.72166514,0.0001,2]
[356581646,1742725838344,-435.68171857,0.0001,2]
[356581647,1742725838355,-1361.32179779,0.0001,2]
[356581648,1742725838368,-603.7737553,0.0001,2]
[356581649,1742725838556,-256.91980793,0.0001,2]
[356581689,1742725838937,-151.0,0.0001,2]
[356581737,1742725840562,-442532.10576155,0.0001,2]
[356581738,1742725840571,-150.0,0.00010474,2]
[356581739,1742725840580,-424.14323602,0.00010586,2]
[356581740,1742725840589,-314.93,0.00010686,2]
[356581741,1742725840599,-150.0,0.00010999,2]
[356581742,1742725840608,-28303.35113725,0.00011099,2]
[356581743,1742725840618,-3636.89633412,0.00011099,2]
[356581744,1742725840627,-314.93,0.0001128,2]
[356581745,1742725840637,-23289.00859614,0.00011283,2]
[356581746,1742725840646,-500.0,0.00011342,2]
[356581747,1742725840657,-172.39,0.00011386,2]
[356581748,1742725840667,-1848.44,0.00011487,2]
[356581749,1742725840677,-147.08848883,0.00011496,2]